fUSD/lending_fUSD_20240415
["ID","MTS","AMOUNT","RATE_DAILY","PERIOD"]
[322678067,1713211840623,-150.0,0.00020869,2]
[322678068,1713211840633,-2195.05771106,0.00020873,2]
[322678069,1713211840642,-150.0,0.00020875,2]
[322678070,1713211840651,-150.15251881,0.00020877,2]
[322678071,1713211840661,-150.15251866,0.00020877,2]
[322678072,1713211840670,-150.15251866,0.00020878,2]
[322678073,1713211840680,-150.15251866,0.00020878,2]
[322678074,1713211840689,-2195.05771106,0.00020878,2]
[322678075,1713211840698,-150.15251866,0.00020878,2]
[322678076,1713211840707,-150.15251866,0.00020879,2]
[322678077,1713211840716,-150.15251866,0.00020879,2]
[322678078,1713211840726,-1500.0,0.00020879,2]
[322678079,1713211840736,-150.15251866,0.00020879,2]
[322678080,1713211840749,-150.15251866,0.0002088,2]
[322678081,1713211840763,-150.15251866,0.0002088,2]
[322678082,1713211840771,-150.0,0.0002088,2]
[322678083,1713211840782,-150.15251866,0.0002088,2]
[322678084,1713211840791,-150.15251866,0.00020881,2]
[322678085,1713211840801,-150.15251866,0.00020881,2]
[322678086,1713211840811,-150.15251866,0.00020881,2]
[322678087,1713211840822,-150.15251866,0.00020882,2]
[322678088,1713211840832,-150.15251866,0.00020882,2]
[322678089,1713211840841,-150.15251866,0.00020882,2]
[322678090,1713211840851,-150.15251866,0.00020883,2]
[322678091,1713211840861,-150.15251866,0.00020883,2]
[322678092,1713211840870,-150.0,0.00020883,2]
[322678093,1713211840880,-150.15251866,0.00020883,2]
[322678094,1713211840889,-150.15251866,0.00020883,2]
[322678095,1713211840899,-2195.05771106,0.00020884,2]
[322678096,1713211840909,-150.15251866,0.00020884,2]
[322678097,1713211840919,-150.15251866,0.00020884,2]
[322678098,1713211840928,-150.15251866,0.00020884,2]
[322678099,1713211840938,-150.15251866,0.00020885,2]
[322678100,1713211840947,-150.0,0.00020885,2]
[322678101,1713211840957,-150.0,0.00020885,2]
[322678102,1713211840967,-150.0,0.00020885,2]
[322678103,1713211840976,-150.15251866,0.00020885,2]
[322678104,1713211840986,-150.15251866,0.00020885,2]
[322678105,1713211840996,-150.15251866,0.00020886,2]
[322678106,1713211841012,-150.15251866,0.00020886,2]
[322678107,1713211841022,-150.15251866,0.00020886,2]
[322678108,1713211841032,-150.15251866,0.00020887,2]
[322678109,1713211841042,-150.0,0.00020887,2]
[322678110,1713211841051,-150.0,0.00020887,2]
[322678111,1713211841061,-150.15251866,0.00020887,2]
[322678112,1713211841070,-150.15251866,0.00020887,2]
[322678113,1713211841080,-150.15251866,0.00020888,2]
[322678114,1713211841090,-150.0,0.00020888,2]
[322678115,1713211841100,-150.0,0.00020888,2]
[322678116,1713211841109,-150.15251866,0.00020888,2]
[322678117,1713211841118,-150.15251866,0.00020888,2]
[322678118,1713211841128,-150.15251866,0.00020889,2]
[322678119,1713211841138,-150.15251866,0.00020889,2]
[322678120,1713211841147,-2195.05771106,0.00020889,2]
[322678121,1713211841156,-150.15251866,0.00020889,2]
[322678122,1713211841166,-150.15251866,0.0002089,2]
[322678123,1713211841175,-150.15251866,0.0002089,2]
[322678124,1713211841184,-150.15251866,0.0002089,2]
[322678125,1713211841193,-150.15251866,0.00020891,2]
[322678126,1713211841203,-150.15251866,0.00020891,2]
[322678127,1713211841213,-150.15251866,0.00020891,2]
[322678128,1713211841223,-150.15251866,0.00020892,2]
[322678129,1713211841233,-150.15251866,0.00020892,2]
[322678130,1713211841242,-150.15251866,0.00020892,2]
[322678131,1713211841257,-150.15251866,0.00020893,2]
[322678132,1713211841269,-150.15251866,0.00020893,2]
[322678133,1713211841279,-150.15251866,0.00020893,2]
[322678134,1713211841289,-150.15251866,0.00020894,2]
[322678135,1713211841299,-150.15251866,0.00020894,2]
[322678136,1713211841309,-150.15251866,0.00020894,2]
[322678137,1713211841318,-150.15251866,0.00020894,2]
[322678138,1713211841327,-2195.05771106,0.00020895,2]
[322678139,1713211841336,-150.15251866,0.00020895,2]
[322678140,1713211841345,-150.15251866,0.00020895,2]
[322678141,1713211841354,-150.15251866,0.00020895,2]
[322678142,1713211841363,-150.15251866,0.00020896,2]
[322678143,1713211841373,-150.15251866,0.00020896,2]
[322678144,1713211841383,-150.15251866,0.00020896,2]
[322678145,1713211841393,-150.15251866,0.00020897,2]
[322678146,1713211841402,-150.0,0.00020897,2]
[322678147,1713211841412,-150.15251866,0.00020897,2]
[322678148,1713211841422,-150.15251866,0.00020897,2]
[322678149,1713211841451,-150.15251866,0.00020898,2]
[322678150,1713211841461,-200.12509949,0.00020898,2]
[322678151,1713211841470,-150.15251866,0.00020898,2]
[322678152,1713211841479,-150.15251866,0.00020898,2]
[322678153,1713211841488,-150.15251866,0.00020899,2]
[322678154,1713211841498,-150.15251866,0.00020899,2]
[322678155,1713211841510,-150.15251866,0.00020899,2]
[322678156,1713211841521,-150.15251866,0.000209,2]
[322678157,1713211841530,-199.51477624,0.000209,2]
[322678158,1713211841540,-210.7921,0.000209,2]
[322678159,1713211841549,-1000.0,0.000209,2]
[322678160,1713211841558,-123711.71637992,0.000209,2]
[322678161,1713211841568,-4706.45995508,0.000209,2]
[322678162,1713211841577,-294.15374718,0.000209,2]
[322678163,1713211841587,-210.46523158,0.000209,2]
[322678164,1713211841596,-2195.05771106,0.000209,2]
[322678165,1713211841606,-150.15251866,0.000209,2]
[322678166,1713211841617,-200.12509949,0.000209,2]
[322678167,1713211841626,-1235.4869053,0.000209,2]
[322678168,1713211841636,-130538.89470355,0.000209,2]
[322678169,1713211841646,-208.65322947,0.000209,2]
[322678170,1713211841655,-2880.93061987,0.000209,2]
[322678171,1713211841665,-5507.21140862,0.000209,3]
[322678172,1713211841674,-5274.03857546,0.000209,2]
[322678173,1713211841683,-206.8894965,0.000209,2]
[322678174,1713211841692,-172.13156991,0.000209,2]
[322678175,1713211841701,-150.0,0.00020902,2]
[322678176,1713211841710,-150.0,0.00020906,2]
[322678177,1713211841719,-150.0,0.00020906,2]
[322678178,1713211841728,-150.0,0.00020911,2]
[322678179,1713211841741,-150.0,0.00020913,2]
[322678180,1713211841750,-150.0,0.00020914,2]
[322678181,1713211841762,-162.06976837,0.00020916,2]
[322678182,1713211841771,-14640.19764365,0.00020916,2]
[322678183,1713211841781,-14640.19764365,0.00020916,2]
[322678184,1713211841790,-162.06976837,0.00020916,2]
[322678185,1713211841800,-150.0,0.00020917,2]
[322678186,1713211841809,-1442.22990368,0.00020917,2]
[322678187,1713211841818,-488.00658812,0.00020918,2]
[322678188,1713211841829,-1000.0,0.00020918,2]
[322678189,1713211841838,-14640.19764365,0.00020921,2]
[322678190,1713211841847,-1442.22990368,0.00020921,2]
[322678191,1713211841856,-490.34018047,0.00020921,2]
[322678192,1713211841866,-14640.19764365,0.00020922,2]
[322678193,1713211841875,-162.06976837,0.00020923,2]
[322678194,1713211841884,-1622.50864163,0.00020923,2]
[322678195,1713211841894,-487.735163,0.00020925,2]
[322678196,1713211841903,-184.53286507,0.00020926,2]
[322678197,1713211841912,-1442.22990368,0.00020927,2]
[322678198,1713211841922,-490.34018047,0.00020928,2]
[322678199,1713211841932,-490.34018047,0.00020928,2]
[322678200,1713211841941,-162.06976837,0.00020928,2]
[322678201,1713211841950,-713.22208067,0.00020929,2]
[322678202,1713211841959,-490.34018047,0.00020929,2]
[322678203,1713211841968,-641.02335709,0.0002093,2]
[322678204,1713211841977,-150.0,0.0002093,2]
[322678205,1713211841986,-641.02335709,0.00020931,2]
[322678206,1713211841994,-150.0,0.00020931,2]
[322678207,1713211842004,-488.00658812,0.00020931,2]
[322678208,1713211842013,-1442.22990368,0.00020931,2]
[322678209,1713211842022,-4392.0592931,0.00020931,2]
[322678210,1713211842032,-14640.19764365,0.00020932,2]
[322678211,1713211842041,-641.02335709,0.00020932,2]
[322678212,1713211842050,-1199.46362295,0.00020932,2]
[322678213,1713211842060,-1442.22990368,0.00020933,2]
[322678214,1713211842070,-150.0,0.00020934,2]
[322678215,1713211842079,-488.00658812,0.00020934,2]
[322678216,1713211842088,-1107.19719043,0.00020935,2]
[322678217,1713211842098,-1107.19719043,0.00020935,2]
[322678218,1713211842107,-1442.22990368,0.00020935,2]
[322678219,1713211842117,-1199.46362295,0.00020936,2]
[322678220,1713211842126,-490.34018047,0.00020938,2]
[322678221,1713211842135,-1107.19719043,0.00020939,2]
[322678222,1713211842145,-1107.19719043,0.00020939,2]
[322678223,1713211842154,-14640.19764365,0.0002094,2]
[322678224,1713211842163,-641.02335709,0.0002094,2]
[322678225,1713211842173,-713.22208067,0.00020941,2]
[322678226,1713211842182,-488.00658812,0.00020941,2]
[322678227,1713211842191,-490.34018047,0.00020942,2]
[322678228,1713211842200,-150.0,0.00020943,2]
[322678229,1713211842209,-641.02335709,0.00020944,2]
[322678230,1713211842218,-1199.46362295,0.00020945,2]
[322678231,1713211842227,-1442.22990368,0.00020945,2]
[322678232,1713211842237,-487.735163,0.00020946,2]
[322678233,1713211842246,-14640.19764365,0.00020947,2]
[322678234,1713211842257,-4392.0592931,0.00020948,2]
[322678235,1713211842265,-162.06976837,0.00020948,2]
[322678236,1713211842275,-162.06976837,0.00020949,2]
[322678237,1713211842284,-184.53286507,0.0002095,2]
[322678238,1713211842293,-184.53286507,0.0002095,2]
[322678239,1713211842303,-641.02335709,0.0002095,2]
[322678240,1713211842312,-1442.22990368,0.00020951,2]
[322678241,1713211842321,-713.22208067,0.00020952,2]
[322678242,1713211842331,-1442.22990368,0.00020953,2]
[322678243,1713211842340,-184.53286507,0.00020953,2]
[322678244,1713211842349,-713.22208067,0.00020953,2]
[322678245,1713211842358,-150.0,0.00020955,2]
[322678246,1713211842368,-150.0,0.00020955,2]
[322678247,1713211842377,-487.735163,0.00020955,2]
[322678248,1713211842386,-487.735163,0.00020956,2]
[322678249,1713211842395,-150.0,0.00020956,2]
[322678250,1713211842404,-1107.19719043,0.00020959,2]
[322678251,1713211842413,-641.02335709,0.00020959,2]
[322678252,1713211842422,-487.735163,0.00020961,2]
[322678253,1713211842432,-1107.19719043,0.00020961,2]
[322678254,1713211842441,-162.06976837,0.00020961,2]
[322678255,1713211842450,-1199.46362295,0.00020962,2]
[322678256,1713211842459,-1442.22990368,0.00020962,2]
[322678257,1713211842468,-713.22208067,0.00020962,2]
[322678258,1713211842477,-641.02335709,0.00020962,2]
[322678259,1713211842486,-1199.46362295,0.00020963,2]
[322678260,1713211842495,-490.34018047,0.00020963,2]
[322678261,1713211842506,-150.0,0.00020963,2]
[322678262,1713211842515,-1442.22990368,0.00020963,2]
[322678263,1713211842524,-1199.46362295,0.00020963,2]
[322678264,1713211842533,-1442.22990368,0.00020964,2]
[322678265,1713211842542,-1442.22990368,0.00020964,2]
[322678266,1713211842550,-150.0,0.00020964,2]
[322678267,1713211842560,-1199.46362295,0.00020965,2]
[322678268,1713211842568,-4392.0592931,0.00020965,2]
[322678269,1713211842577,-4392.0592931,0.00020965,2]
[322678270,1713211842587,-490.34018047,0.00020965,2]
[322678271,1713211842596,-1107.19719043,0.00020966,2]
[322678272,1713211842605,-487.735163,0.00020966,2]
[322678273,1713211842614,-4392.0592931,0.00020966,2]
[322678274,1713211842623,-713.22208067,0.00020967,2]
[322678275,1713211842632,-150.0,0.00020967,2]
[322678276,1713211842641,-150.0,0.00020967,2]
[322678277,1713211842650,-162.06976837,0.00020968,2]
[322678278,1713211842659,-1622.50864163,0.00020969,2]
[322678279,1713211842668,-4392.0592931,0.00020969,2]
[322678280,1713211842677,-1442.22990368,0.0002097,2]
[322678281,1713211842686,-150.0,0.00020971,2]
[322678282,1713211842695,-150.0,0.00020972,2]
[322678283,1713211842704,-713.22208067,0.00020973,2]
[322678284,1713211842713,-713.22208067,0.00020973,2]
[322678285,1713211842724,-14640.19764365,0.00020973,2]
[322678286,1713211842734,-487.735163,0.00020975,2]
[322678287,1713211842747,-641.02335709,0.00020975,2]
[322678288,1713211842762,-184.53286507,0.00020976,2]
[322678289,1713211842771,-487.735163,0.00020977,2]
[322678290,1713211842780,-487.735163,0.00020977,2]
[322678291,1713211842790,-488.00658812,0.00020977,2]
[322678292,1713211842799,-488.00658812,0.00020978,2]
[322678293,1713211842809,-488.00658812,0.00020978,2]
[322678294,1713211842819,-1442.22990368,0.0002098,2]
[322678295,1713211842829,-1442.22990368,0.0002098,2]
[322678296,1713211842838,-4392.0592931,0.0002098,2]
[322678297,1713211842848,-184.53286507,0.00020981,2]
[322678298,1713211842857,-1199.46362295,0.00020981,2]
[322678299,1713211842866,-162.06976837,0.00020981,2]
[322678300,1713211842877,-184.53286507,0.00020981,2]
[322678301,1713211842886,-184.53286507,0.00020982,2]
[322678302,1713211842895,-4392.0592931,0.00020986,2]
[322678321,1713211843143,-14640.19764365,0.00020986,2]
[322678324,1713211843153,-150.0,0.00020988,2]
[322678327,1713211843163,-184.53286507,0.00020989,2]
[322678328,1713211843173,-488.00658812,0.0002099,2]
[322678329,1713211843182,-2199.99999901,0.0002099,2]
[322678330,1713211843192,-1442.22990368,0.0002099,2]
[322678331,1713211843201,-4392.0592931,0.00020992,2]
[322678332,1713211843211,-1107.19719043,0.00020993,2]
[322678333,1713211843220,-713.22208067,0.00020994,2]
[322678334,1713211843230,-1442.22990368,0.00020994,2]
[322678335,1713211843239,-1107.19719043,0.00020997,2]
[322678336,1713211843249,-229.51547387,0.00020997,2]
[322678337,1713211843260,-490.34018047,0.00020998,2]
[322678338,1713211843269,-488.00658812,0.00020998,2]
[322678339,1713211843278,-3080.91191322,0.00020998,2]
[322678340,1713211843287,-342.81596001,0.00020998,2]
[322678341,1713211843296,-312.85355611,0.00020998,2]
[322678342,1713211843306,-225671.3043324,0.00020998,2]
[322678343,1713211843315,-96908.57333938,0.00020998,2]
[322678344,1713211843325,-1500.0,0.00020998,2]
[322678345,1713211843334,-1199.46362295,0.00020999,2]
[322678346,1713211843343,-206.48280128,0.00020999,2]
[322678347,1713211843352,-5836.6670907,0.00020999,2]
[322678348,1713211843361,-206.9318143,0.00020999,2]
[322678349,1713211843371,-12147.44589705,0.00020999,2]
[322678350,1713211843380,-150.0,0.00020999,2]
[322678351,1713211843389,-38258.16779892,0.00020999,2]
[322678352,1713211843398,-266.93732489,0.00020999,2]
[322678353,1713211843408,-1073.06592364,0.00020999,2]
[322678354,1713211843417,-12341.051124,0.00020999,7]
[322678355,1713211843427,-500.0,0.00020999,2]
[322678356,1713211843437,-189.98189383,0.00020999,2]
[322678357,1713211843450,-500.0,0.00020999,2]
[322678358,1713211843459,-500.0,0.00020999,2]
[322678359,1713211843468,-500.0,0.00020999,2]
[322678360,1713211843477,-500.0,0.00020999,2]
[322678361,1713211843486,-269.85910893,0.00020999,2]
[322678362,1713211843496,-500.0,0.00020999,2]
[322678363,1713211843507,-500.0,0.00020999,2]
[322678364,1713211843516,-500.0,0.00020999,2]
[322678365,1713211843525,-500.0,0.00020999,2]
[322678366,1713211843534,-500.0,0.00020999,2]
[322678367,1713211843544,-500.0,0.00020999,2]
[322678368,1713211843553,-500.0,0.00020999,2]
[322678369,1713211843562,-534684.93068342,0.00021,7]
[322678370,1713211843571,-402.65904851,0.00021,2]
[322678371,1713211843581,-189283.89161702,0.00021,2]
[322678372,1713211843590,-333691.33326731,0.00021,2]
[322678373,1713211843599,-590590.85095725,0.00021,2]
[322678374,1713211843608,-671332.66703872,0.00021,2]
[322678375,1713211843618,-10000.0,0.00021,2]
[322678376,1713211843627,-1868316.50274994,0.00021,2]
[322678377,1713211843636,-1281843.57502727,0.00021,2]
[322678378,1713211843646,-964.0,0.00021,3]
[322678379,1713211843655,-342402.10193658,0.00021,2]
[322678380,1713211843672,-121017.13351089,0.00021,2]
[322678381,1713211843681,-150.0,0.00021,2]
[322678382,1713211843690,-479.0,0.00021,3]
[322678383,1713211843700,-745.0,0.00021,2]
[322678384,1713211843709,-38758.66341241,0.00021,2]
[322678385,1713211843718,-1068.19,0.00021,2]
[322678386,1713211843728,-1348.29,0.00021,2]
[322678387,1713211843738,-482.0,0.00021,3]
[322678388,1713211843751,-372.0,0.00021,2]
[322678389,1713211843762,-1200.0,0.00021,2]
[322678390,1713211843771,-210248.39675428,0.00021,2]
[322678391,1713211843782,-575.53711763,0.00021,2]
[322678392,1713211843795,-588.70309362,0.00021,2]
[322678393,1713211843806,-443.83778674,0.00021,2]
[322678394,1713211843819,-1204.738,0.00021,2]
[322678395,1713211843836,-2499.63335,0.00021,2]
[322678396,1713211843847,-2301.2902,0.00021,2]
[322678397,1713211843858,-3572.60952,0.00021,2]
[322678398,1713211843870,-896524.3457919,0.00021,2]
[322678403,1713211844344,-1227.79854319,0.00021,2]
[322678404,1713211844357,-1155479.06462937,0.00021,2]
[322678405,1713211844369,-144232.1741589,0.00021,2]
[322678406,1713211844471,-339.55588088,0.00021,2]
[322678407,1713211844483,-3498.585,0.00021,2]
[322678408,1713211844815,-293.7,0.00021,2]
[322678409,1713211845769,-338.79383807,0.000209,2]
[322678413,1713211847954,-155.0,0.00020479,2]
[322678414,1713211847963,-827.20691664,0.00020795,2]
[322678415,1713211847972,-31.57388907,0.000209,2]
[322678416,1713211847982,-761167.41226904,0.00021,2]
[322678417,1713211848035,-9533.94310162,0.00021,2]
[322678418,1713211848073,-3772.70499628,0.00021,2]
[322678419,1713211850109,-155.0,0.00020479,2]
[322678420,1713211850118,-521.52817145,0.00020794,2]
[322678421,1713211850127,-827.20691664,0.000209,2]
[322678422,1713211850137,-9392.90575833,0.00021,2]
[322678423,1713211850148,-354.24923959,0.00021,2]
[322678424,1713211850192,-222943.77965804,0.00021,2]
[322678425,1713211850220,-3681.1346554,0.00021,2]
[322678426,1713211850253,-1643.16769497,0.00021,2]
[322678427,1713211850265,-1196.2850262,0.00021,2]
[322678428,1713211905836,-163.49899824,0.00034001,120]
[322678429,1713211905870,-222.11790358,0.00034001,120]
[322678430,1713211905905,-575.80545533,0.00034001,120]
[322678431,1713211905939,-151.6860177,0.00034001,120]
[322678432,1713211905971,-170.05823206,0.00034001,120]
[322678433,1713211906003,-482.43851928,0.00034001,120]
[322678434,1713211906033,-409.04351473,0.00034001,120]
[322678435,1713211906064,-196.36560206,0.00034001,120]
[322678436,1713211906094,-159.3880446,0.00034001,120]
[322678437,1713211906125,-333.97822507,0.00034001,120]
[322678438,1713211906155,-261.97702541,0.00034001,120]
[322678439,1713211906184,-222.53185816,0.00034001,120]
[322678440,1713211906214,-1000.0,0.00034001,120]
[322678441,1713211906244,-500.0,0.00034001,60]
[322678442,1713211906274,-500.0,0.00034001,60]
[322678443,1713211906305,-500.0,0.00034001,60]
[322678444,1713211906336,-500.0,0.00034001,60]
[322678445,1713211906366,-500.0,0.00034001,60]
[322678446,1713211906396,-500.0,0.00034001,60]
[322678447,1713211906426,-500.0,0.00034001,60]
[322678448,1713211906457,-263.23506707,0.00034001,60]
[322678449,1713211906486,-506.4126821,0.00034001,60]
[322678450,1713211906516,-500.0,0.00034001,60]
[322678451,1713211906547,-502.06600292,0.00034001,60]
[322678452,1713211906941,-500.0,0.00034001,60]
[322678453,1713211906973,-500.0,0.00034001,60]
[322678454,1713211907004,-297.1941361,0.00034001,60]
[322678455,1713211907034,-500.0,0.00034001,60]
[322678456,1713211907064,-500.0,0.00034001,60]
[322678457,1713211907094,-442.55708077,0.00034001,60]
[322678458,1713211907124,-500.0,0.00034001,60]
[322678459,1713211907154,-500.0,0.00034001,60]
[322678460,1713211907183,-500.0,0.00034001,60]
[322678461,1713211907213,-500.0,0.00034001,60]
[322678462,1713211907243,-500.0,0.00034001,60]
[322678463,1713211907272,-500.0,0.00034001,60]
[322678464,1713211907302,-500.0,0.00034001,60]
[322678465,1713211907336,-500.0,0.00034001,60]
[322678466,1713211907366,-500.0,0.00034001,60]
[322678467,1713211907396,-500.0,0.00034001,60]
[322678468,1713211907426,-500.0,0.00034001,60]
[322678469,1713211907457,-279.3546739,0.00034001,60]
[322678470,1713211907488,-500.0,0.00034001,60]
[322678471,1713211907519,-500.0,0.00034001,60]
[322678472,1713211907550,-500.0,0.00034001,60]
[322678473,1713211907582,-272.28854546,0.00034001,60]
[322678474,1713211907613,-500.0,0.00034001,60]
[322678475,1713211907646,-500.0,0.00034001,60]
[322678476,1713211907676,-500.0,0.00034001,60]
[322678477,1713211907708,-500.0,0.00034001,60]
[322678478,1713211907738,-500.0,0.00034001,60]
[322678479,1713211907770,-500.0,0.00034001,60]
[322678480,1713211907801,-500.0,0.00034001,60]
[322678481,1713211907836,-500.0,0.00034001,60]
[322678482,1713211907867,-500.0,0.00034001,60]
[322678483,1713211907898,-500.0,0.00034001,60]
[322678484,1713211907929,-262.74014578,0.00034001,60]
[322678485,1713211907960,-500.0,0.00034001,60]
[322678486,1713211907991,-150.08980058,0.00034001,60]
[322678487,1713211908022,-421.86277452,0.00034001,60]
[322678488,1713211908063,-176.37166719,0.00034001,60]
[322678489,1713211908095,-500.0,0.00034001,60]
[322678490,1713211908126,-500.0,0.00034001,60]
[322678491,1713211908158,-500.0,0.00034001,60]
[322678492,1713211908189,-500.0,0.00034001,60]
[322678493,1713211908220,-500.0,0.00034001,60]
[322678494,1713211908253,-500.0,0.00034001,60]
[322678495,1713211908284,-500.0,0.00034001,60]
[322678496,1713211908320,-554.96950461,0.00034001,60]
[322678497,1713211908351,-500.0,0.00034001,60]
[322678498,1713211908380,-500.0,0.00034001,60]
[322678499,1713211908409,-500.0,0.00034001,60]
[322678500,1713211908437,-500.0,0.00034001,60]
[322678501,1713211908490,-500.0,0.00034001,60]
[322678502,1713211908525,-500.0,0.00034001,60]
[322678503,1713211908555,-500.0,0.00034001,60]
[322678504,1713211908593,-500.0,0.00034001,60]
[322678505,1713211908623,-500.0,0.00034001,60]
[322678506,1713211908654,-500.0,0.00034001,60]
[322678507,1713211908683,-500.0,0.00034001,60]
[322678508,1713211908712,-500.0,0.00034001,60]
[322678509,1713211908743,-500.0,0.00034001,60]
[322678510,1713211908773,-500.0,0.00034001,60]
[322678511,1713211908804,-532.76335718,0.00034001,60]
[322678512,1713211908838,-500.0,0.00034001,60]
[322678513,1713211908869,-500.0,0.00034001,60]
[322678514,1713211908899,-500.0,0.00034001,60]
[322678515,1713211908930,-500.0,0.00034001,60]
[322678516,1713211908960,-500.0,0.00034001,60]
[322678517,1713211908994,-365.31324045,0.00034001,60]
[322678518,1713211909027,-500.0,0.00034001,60]
[322678519,1713211909061,-500.0,0.00034001,60]
[322678520,1713211909091,-500.0,0.00034001,60]
[322678521,1713211909121,-184.35523698,0.00034001,60]
[322678522,1713211909151,-500.0,0.00034001,60]
[322678523,1713211909181,-500.0,0.00034001,60]
[322678524,1713211909211,-500.0,0.00034001,60]
[322678525,1713211909241,-500.0,0.00034001,60]
[322678526,1713211909271,-500.0,0.00034001,60]
[322678527,1713211909301,-500.0,0.00034001,60]
[322678528,1713211909334,-500.0,0.00034001,60]
[322678529,1713211909364,-500.0,0.00034001,60]
[322678530,1713211909393,-500.0,0.00034001,60]
[322678531,1713211909424,-500.0,0.00034001,60]
[322678532,1713211909454,-537.18840987,0.00034001,60]
[322678533,1713211909484,-500.0,0.00034001,60]
[322678534,1713211909514,-500.0,0.00034001,60]
[322678535,1713211909543,-500.0,0.00034001,60]
[322678536,1713211909573,-238.19319566,0.00034001,60]
[322678537,1713211909603,-500.0,0.00034001,60]
[322678538,1713211909633,-500.0,0.00034001,60]
[322678539,1713211909663,-500.0,0.00034001,60]
[322678540,1713211909698,-500.0,0.00034001,60]
[322678541,1713211909728,-500.0,0.00034001,60]
[322678542,1713211909759,-500.0,0.00034001,60]
[322678543,1713211909795,-500.0,0.00034001,60]
[322678544,1713211909828,-500.0,0.00034001,60]
[322678545,1713211909859,-500.0,0.00034001,60]
[322678546,1713211909890,-469.19857902,0.00034001,60]
[322678547,1713211909921,-589.44,0.00034001,60]
[322678548,1713211909952,-500.0,0.00034001,60]
[322678549,1713211909982,-500.0,0.00034001,60]
[322678550,1713211910012,-500.0,0.00034001,60]
[322678551,1713211910042,-500.0,0.00034001,60]
[322678552,1713211910074,-500.0,0.00034001,60]
[322678553,1713211910106,-500.0,0.00034001,60]
[322678554,1713211910137,-500.0,0.00034001,60]
[322678555,1713211910169,-500.0,0.00034001,60]
[322678556,1713211910199,-500.0,0.00034001,60]
[322678557,1713211910444,-500.0,0.00034001,60]
[322678558,1713211910477,-485.56978947,0.00034001,60]
[322678559,1713211910508,-228.6226534,0.00034001,60]
[322678560,1713211910538,-500.0,0.00034001,60]
[322678561,1713211910568,-500.0,0.00034001,60]
[322678562,1713211910598,-500.0,0.00034001,60]
[322678563,1713211910627,-500.0,0.00034001,60]
[322678564,1713211910658,-506.15613638,0.00034001,60]
[322678565,1713211910691,-647.47837143,0.00034001,60]
[322678566,1713211910721,-500.0,0.00034001,60]
[322678567,1713211910751,-500.0,0.00034001,60]
[322678568,1713211910783,-500.0,0.00034001,60]
[322678569,1713211910815,-238.49328232,0.00034001,60]
[322678570,1713211910846,-736.42,0.00034001,60]
[322678571,1713211910878,-736.42,0.00034001,60]
[322678572,1713211910909,-736.42,0.00034001,60]
[322678573,1713211910942,-736.42,0.00034001,60]
[322678574,1713211910974,-736.42,0.00034001,60]
[322678575,1713211911006,-736.42,0.00034001,60]
[322678576,1713211911036,-736.42,0.00034001,60]
[322678577,1713211911067,-736.42,0.00034001,60]
[322678578,1713211911098,-736.42,0.00034001,60]
[322678579,1713211911130,-736.42,0.00034001,60]
[322678580,1713211911161,-736.42,0.00034001,60]
[322678581,1713211911193,-736.42,0.00034001,60]
[322678582,1713211911223,-736.42,0.00034001,60]
[322678583,1713211911255,-736.42,0.00034001,60]
[322678584,1713211911286,-736.42,0.00034001,60]
[322678585,1713211911317,-736.42,0.00034001,60]
[322678586,1713211911348,-736.42,0.00034001,60]
[322678587,1713211911378,-736.42,0.00034001,60]
[322678588,1713211911409,-736.42,0.00034001,60]
[322678589,1713211911440,-736.42,0.00034001,60]
[322678590,1713211911471,-500.0,0.00034001,60]
[322678591,1713211911501,-736.42,0.00034001,60]
[322678592,1713211911531,-500.0,0.00034001,60]
[322678593,1713211911566,-736.42,0.00034001,60]
[322678594,1713211911599,-525.79439807,0.00034001,60]
[322678595,1713211911631,-736.42,0.00034001,60]